[Event "Early-Titled-Tuesday-Blitz-August-29-2023"]
[Site "Chess.com"]
[Date "2023.08.29"]
[Round "6"]
[White "Iunusovnuriddin"]
[Black "ExchangeAB"]
[Result "1/2-1/2"]
[WhiteElo "2300"]
[BlackElo "2462"]
[TimeControl "180+1"]
[EndTime "9:06:23 PDT"]
[Termination "Game drawn - insufficient material"]

1. e4 {[%clk 0:02:40.7]} 1... c6 {[%clk 0:02:59.6]} 2. Nc3 {[%clk 0:02:38.4]}
2... d5 {[%clk 0:03:00.5]} 3. Nf3 {[%clk 0:02:38.7]} 3... Bg4 {[%clk 0:03:00.4]}
4. h3 {[%clk 0:02:38.2]} 4... Bxf3 {[%clk 0:03:00.7]} 5. Qxf3 {[%clk 0:02:39.1]}
5... e6 {[%clk 0:03:01.6]} 6. d4 {[%clk 0:02:38.4]} 6... Nd7 {[%clk 0:02:59.3]}
7. a3 {[%clk 0:02:35]} 7... dxe4 {[%clk 0:02:58.2]} 8. Nxe4 {[%clk 0:02:34.3]}
8... Ngf6 {[%clk 0:02:58.9]} 9. c3 {[%clk 0:02:12.3]} 9... Nxe4 {[%clk
0:02:58.6]} 10. Qxe4 {[%clk 0:02:13.1]} 10... Nf6 {[%clk 0:02:59.3]} 11. Qf3
{[%clk 0:02:11.3]} 11... Qd5 {[%clk 0:02:58.9]} 12. Be2 {[%clk 0:02:10.8]} 12...
Qxf3 {[%clk 0:02:58.8]} 13. Bxf3 {[%clk 0:02:11.7]} 13... Bd6 {[%clk 0:02:58.7]}
14. O-O {[%clk 0:02:11.4]} 14... O-O-O {[%clk 0:02:58.4]} 15. Bg5 {[%clk
0:02:08.9]} 15... h6 {[%clk 0:02:53.6]} 16. Bd2 {[%clk 0:02:00.5]} 16... c5
{[%clk 0:02:48]} 17. dxc5 {[%clk 0:01:51.7]} 17... Bxc5 {[%clk 0:02:48.9]} 18.
Rad1 {[%clk 0:01:52.1]} 18... Rd7 {[%clk 0:02:40.2]} 19. b4 {[%clk 0:01:44.5]}
19... Bb6 {[%clk 0:02:39.8]} 20. c4 {[%clk 0:01:44.7]} 20... Rhd8 {[%clk
0:02:39.4]} 21. Bc3 {[%clk 0:01:45.2]} 21... Bd4 {[%clk 0:02:37.3]} 22. Bxd4
{[%clk 0:01:25.9]} 22... Rxd4 {[%clk 0:02:38.2]} 23. c5 {[%clk 0:01:25.3]} 23...
Kc7 {[%clk 0:02:38.4]} 24. Rb1 {[%clk 0:01:09.6]} 24... Rd3 {[%clk 0:02:34.9]}
25. a4 {[%clk 0:01:08.4]} 25... Ra3 {[%clk 0:02:34.7]} 26. Ra1 {[%clk
0:00:57.9]} 26... Rdd3 {[%clk 0:02:34.3]} 27. b5 {[%clk 0:00:56.7]} 27... e5
{[%clk 0:01:52.4]} 28. Rxa3 {[%clk 0:00:24.5]} 28... Rxa3 {[%clk 0:01:51.1]} 29.
Re1 {[%clk 0:00:24.8]} 29... e4 {[%clk 0:01:30.5]} 30. Bxe4 {[%clk 0:00:25.2]}
30... Rxa4 {[%clk 0:01:31.2]} 31. Bf3 {[%clk 0:00:24.5]} 31... Rd4 {[%clk
0:01:28.5]} 32. c6 {[%clk 0:00:23]} 32... bxc6 {[%clk 0:01:20.7]} 33. bxc6
{[%clk 0:00:22.7]} 33... Nd5 {[%clk 0:00:54.6]} 34. Bxd5 {[%clk 0:00:20.1]}
34... Rxd5 {[%clk 0:00:55.5]} 35. Re7+ {[%clk 0:00:20.7]} 35... Kxc6 {[%clk
0:00:56.1]} 36. Rxa7 {[%clk 0:00:21.2]} 36... Rd7 {[%clk 0:00:54.3]} 37. Ra3
{[%clk 0:00:21.3]} 37... Kd6 {[%clk 0:00:53.8]} 38. g3 {[%clk 0:00:21.6]} 38...
Ke6 {[%clk 0:00:54.1]} 39. Kg2 {[%clk 0:00:22.2]} 39... g5 {[%clk 0:00:54.1]}
40. Ra6+ {[%clk 0:00:20.8]} 40... Rd6 {[%clk 0:00:53.5]} 41. Rxd6+ {[%clk
0:00:21]} 41... Kxd6 {[%clk 0:00:54.4]} 42. Kf3 {[%clk 0:00:21.2]} 42... h5
{[%clk 0:00:47.1]} 43. g4 {[%clk 0:00:21]} 43... hxg4+ {[%clk 0:00:36.4]} 44.
Kxg4 {[%clk 0:00:20.4]} 44... f6 {[%clk 0:00:36.3]} 45. Kf5 {[%clk 0:00:20.8]}
45... Ke7 {[%clk 0:00:36.8]} 46. f4 {[%clk 0:00:21.3]} 46... gxf4 {[%clk
0:00:36.6]} 47. Kxf4 {[%clk 0:00:22.1]} 47... Kf7 {[%clk 0:00:37.2]} 48. Kf5
{[%clk 0:00:22.8]} 48... Kg7 {[%clk 0:00:37.8]} 49. h4 {[%clk 0:00:23.5]} 49...
Kf7 {[%clk 0:00:38.1]} 50. h5 {[%clk 0:00:24.4]} 50... Kg7 {[%clk 0:00:38.7]}
51. h6+ {[%clk 0:00:24.7]} 51... Kxh6 {[%clk 0:00:39.6]} 52. Kxf6 {[%clk
0:00:24.6]} 1/2-1/2

[Event "Early-Titled-Tuesday-Blitz-August-29-2023"]
[Site "Chess.com"]
[Date "2023.08.29"]
[Round "6"]
[White "amanjazu"]
[Black "Herman-NY"]
[Result "1/2-1/2"]
[WhiteElo "2330"]
[BlackElo "2451"]
[TimeControl "180+1"]
[EndTime "9:06:30 PDT"]
[Termination "Game drawn by repetition"]

1. f4 {[%clk 0:03:00.9]} 1... d5 {[%clk 0:02:54.9]} 2. Nf3 {[%clk 0:03:00.4]}
2... c5 {[%clk 0:02:53.2]} 3. g3 {[%clk 0:03:00.7]} 3... Nc6 {[%clk 0:02:53.5]}
4. Bg2 {[%clk 0:03:00.9]} 4... g6 {[%clk 0:02:53.4]} 5. O-O {[%clk 0:03:01.5]}
5... Nh6 {[%clk 0:02:53.9]} 6. d3 {[%clk 0:03:02.4]} 6... Bg7 {[%clk 0:02:54.2]}
7. e4 {[%clk 0:03:02.4]} 7... O-O {[%clk 0:02:51]} 8. Nc3 {[%clk 0:03:00.5]}
8... dxe4 {[%clk 0:02:39.8]} 9. dxe4 {[%clk 0:02:59.6]} 9... Nd4 {[%clk
0:02:40.1]} 10. h3 {[%clk 0:02:55.6]} 10... f6 {[%clk 0:02:27.3]} 11. Nd5 {[%clk
0:02:26.6]} 11... e6 {[%clk 0:02:03.9]} 12. Ne3 {[%clk 0:02:17.8]} 12... Nf7
{[%clk 0:01:43.1]} 13. c3 {[%clk 0:02:17.2]} 13... Nxf3+ {[%clk 0:01:30]} 14.
Qxf3 {[%clk 0:02:17.3]} 14... Qe7 {[%clk 0:01:24]} 15. Rd1 {[%clk 0:02:01.7]}
15... Bd7 {[%clk 0:01:23.8]} 16. e5 {[%clk 0:01:43]} 16... Bc6 {[%clk 0:01:24]}
17. exf6 {[%clk 0:01:42.9]} 17... Bxf6 {[%clk 0:01:22.6]} 18. Qe2 {[%clk
0:01:38.1]} 18... Bxg2 {[%clk 0:01:22.2]} 19. Qxg2 {[%clk 0:01:37.9]} 19... Rad8
{[%clk 0:01:23.1]} 20. Bd2 {[%clk 0:01:35.8]} 20... Rd3 {[%clk 0:01:20.2]} 21.
Qe4 {[%clk 0:01:27.8]} 21... Rfd8 {[%clk 0:01:20.2]} 22. Be1 {[%clk 0:01:28.2]}
22... c4 {[%clk 0:00:59.5]} 23. Rxd3 {[%clk 0:01:07.9]} 23... cxd3 {[%clk
0:01:00.4]} 24. Rd1 {[%clk 0:01:08.2]} 24... Qd7 {[%clk 0:01:00.8]} 25. Ng4
{[%clk 0:01:03.5]} 25... Be7 {[%clk 0:00:52.4]} 26. Bf2 {[%clk 0:01:03.2]} 26...
Qb5 {[%clk 0:00:06.2]} 27. Qxe6 {[%clk 0:00:59.5]} 27... Bc5 {[%clk 0:00:06.5]}
28. Nh6+ {[%clk 0:00:58.3]} 28... Kg7 {[%clk 0:00:06.7]} 29. Nxf7 {[%clk
0:00:40.1]} 29... Bxf2+ {[%clk 0:00:06.8]} 30. Kxf2 {[%clk 0:00:28.3]} 30... Re8
{[%clk 0:00:07.2]} 31. Qd6 {[%clk 0:00:22.3]} 31... Qxb2+ {[%clk 0:00:01.8]} 32.
Kg1 {[%clk 0:00:21.8]} 32... Kxf7 {[%clk 0:00:02.3]} 33. Qd5+ {[%clk 0:00:20.5]}
33... Kg7 {[%clk 0:00:01.6]} 34. Qd4+ {[%clk 0:00:21]} 34... Kf7 {[%clk
0:00:01.4]} 35. Qxd3 {[%clk 0:00:21.3]} 35... Re2 {[%clk 0:00:01.8]} 36. Qd7+
{[%clk 0:00:19.2]} 36... Re7 {[%clk 0:00:02.5]} 37. Qd5+ {[%clk 0:00:18.8]}
37... Kg7 {[%clk 0:00:03.1]} 38. Qd4+ {[%clk 0:00:17.6]} 38... Kf7 {[%clk
0:00:03.7]} 39. Qd5+ {[%clk 0:00:17.8]} 39... Kg7 {[%clk 0:00:03.8]} 40. Qd4+
{[%clk 0:00:17.6]} 40... Kf7 {[%clk 0:00:03.9]} 41. Qc4+ {[%clk 0:00:18.1]}
41... Kg7 {[%clk 0:00:03.5]} 42. Qd4+ {[%clk 0:00:17.1]} 1/2-1/2

[Event "Early-Titled-Tuesday-Blitz-August-29-2023"]
[Site "Chess.com"]
[Date "2023.08.29"]
[Round "6"]
[White "CFalcons8"]
[Black "jinbojinbo"]
[Result "0-1"]
[WhiteElo "2243"]
[BlackElo "2675"]
[TimeControl "180+1"]
[EndTime "9:06:31 PDT"]
[Termination "jinbojinbo won on time"]

1. e4 {[%clk 0:03:00.9]} 1... e5 {[%clk 0:02:59.2]} 2. d4 {[%clk 0:02:59.1]}
2... exd4 {[%clk 0:02:57]} 3. Qxd4 {[%clk 0:03:00]} 3... Nc6 {[%clk 0:02:55.8]}
4. Qc4 {[%clk 0:02:58]} 4... d6 {[%clk 0:02:50.7]} 5. Be3 {[%clk 0:02:53.7]}
5... Be6 {[%clk 0:02:50.2]} 6. Qe2 {[%clk 0:02:52.4]} 6... g6 {[%clk 0:02:48.8]}
7. c3 {[%clk 0:02:49.6]} 7... Bg7 {[%clk 0:02:48.5]} 8. f3 {[%clk 0:02:47.9]}
8... Nge7 {[%clk 0:02:48.5]} 9. Nd2 {[%clk 0:02:43.3]} 9... O-O {[%clk
0:02:48.1]} 10. h4 {[%clk 0:02:38.4]} 10... d5 {[%clk 0:02:32.6]} 11. O-O-O
{[%clk 0:02:34.1]} 11... d4 {[%clk 0:02:29.2]} 12. cxd4 {[%clk 0:02:29.7]} 12...
Nxd4 {[%clk 0:02:29.2]} 13. Qf2 {[%clk 0:02:19.8]} 13... c5 {[%clk 0:02:18.6]}
14. Bc4 {[%clk 0:02:17.8]} 14... Bxc4 {[%clk 0:02:10.3]} 15. Nxc4 {[%clk
0:02:18.7]} 15... b5 {[%clk 0:02:10.6]} 16. Na3 {[%clk 0:02:16]} 16... Qa5
{[%clk 0:02:06.7]} 17. Kb1 {[%clk 0:02:12.4]} 17... Rfd8 {[%clk 0:01:59.8]} 18.
Ne2 {[%clk 0:02:10.8]} 18... Nec6 {[%clk 0:01:23.9]} 19. h5 {[%clk 0:02:02.4]}
19... b4 {[%clk 0:01:19.3]} 20. Nc4 {[%clk 0:02:01]} 20... Qa6 {[%clk
0:01:19.4]} 21. b3 {[%clk 0:02:00.8]} 21... Nb5 {[%clk 0:01:06.3]} 22. Bxc5
{[%clk 0:01:55.4]} 22... Ne5 {[%clk 0:00:43]} 23. Nxe5 {[%clk 0:01:25.5]} 23...
Na3+ {[%clk 0:00:43.1]} 24. Kc1 {[%clk 0:01:24.7]} 24... Bxe5 {[%clk 0:00:43.7]}
25. Rxd8+ {[%clk 0:01:23.4]} 25... Rxd8 {[%clk 0:00:43.4]} 26. Qe3 {[%clk
0:00:36.8]} 26... Rc8 {[%clk 0:00:29.8]} 27. Kd1 {[%clk 0:00:17.6]} 27... Rd8+
{[%clk 0:00:19.4]} 28. Kc1 {[%clk 0:00:17.3]} 28... Qc6 {[%clk 0:00:07.8]} 29.
hxg6 {[%clk 0:00:16]} 29... fxg6 {[%clk 0:00:07.1]} 30. f4 {[%clk 0:00:03.6]}
30... Bd6 {[%clk 0:00:05.6]} 31. Kb2 {[%clk 0:00:02.6]} 31... Bxc5 {[%clk
0:00:05.3]} 32. Qh3 {[%clk 0:00:02.8]} 32... Qf6+ {[%clk 0:00:05.4]} 33. e5
{[%clk 0:00:02]} 33... Qf7 {[%clk 0:00:03.6]} 0-1

[Event "Early-Titled-Tuesday-Blitz-August-29-2023"]
[Site "Chess.com"]
[Date "2023.08.29"]
[Round "6"]
[White "Romkachess"]
[Black "garfield_pg"]
[Result "1-0"]
[WhiteElo "2550"]
[BlackElo "2370"]
[TimeControl "180+1"]
[EndTime "9:06:31 PDT"]
[Termination "Romkachess won on time"]

1. e4 {[%clk 0:02:52.6]} 1... c5 {[%clk 0:03:00.3]} 2. Nf3 {[%clk 0:02:51.9]}
2... g6 {[%clk 0:03:00.9]} 3. c3 {[%clk 0:02:42.6]} 3... Nf6 {[%clk 0:02:57.9]}
4. e5 {[%clk 0:02:42.1]} 4... Nd5 {[%clk 0:02:56.1]} 5. Bc4 {[%clk 0:02:40.8]}
5... Nb6 {[%clk 0:02:54.9]} 6. Bb3 {[%clk 0:02:41]} 6... c4 {[%clk 0:02:54.7]}
7. Bc2 {[%clk 0:02:40.8]} 7... d6 {[%clk 0:02:55.3]} 8. exd6 {[%clk 0:02:40.3]}
8... Qxd6 {[%clk 0:02:55.7]} 9. O-O {[%clk 0:02:40.4]} 9... Bg7 {[%clk
0:02:54.1]} 10. h3 {[%clk 0:02:36.8]} 10... Bf5 {[%clk 0:02:40.3]} 11. Bxf5
{[%clk 0:02:16.4]} 11... gxf5 {[%clk 0:02:41.2]} 12. Qc2 {[%clk 0:01:58.9]}
12... e6 {[%clk 0:02:33.7]} 13. Re1 {[%clk 0:01:58.8]} 13... Qd5 {[%clk
0:02:18.8]} 14. a4 {[%clk 0:01:48.4]} 14... Nc6 {[%clk 0:02:12.6]} 15. Na3
{[%clk 0:01:48.5]} 15... O-O-O {[%clk 0:02:00.7]} 16. Nb5 {[%clk 0:01:23]} 16...
a6 {[%clk 0:01:56.9]} 17. Nbd4 {[%clk 0:01:03]} 17... Nxd4 {[%clk 0:01:53.9]}
18. cxd4 {[%clk 0:00:54.1]} 18... Bxd4 {[%clk 0:01:49.8]} 19. Nxd4 {[%clk
0:00:49]} 19... Rhg8 {[%clk 0:01:25.2]} 20. f3 {[%clk 0:00:41]} 20... Qxd4+
{[%clk 0:01:23.8]} 21. Kh1 {[%clk 0:00:38.5]} 21... Qf2 {[%clk 0:01:03.2]} 22.
Rg1 {[%clk 0:00:38.6]} 22... Rd3 {[%clk 0:01:03.5]} 23. Ra3 {[%clk 0:00:30.3]}
23... Rxa3 {[%clk 0:00:21.6]} 24. bxa3 {[%clk 0:00:30.5]} 24... Qd4 {[%clk
0:00:22.3]} 25. Bb2 {[%clk 0:00:29]} 25... Qd5 {[%clk 0:00:16.1]} 26. Re1 {[%clk
0:00:28.5]} 26... Nd7 {[%clk 0:00:07.1]} 27. Bc3 {[%clk 0:00:22.8]} 27... Kb8
{[%clk 0:00:06.6]} 28. Qb2 {[%clk 0:00:21.3]} 28... Ka8 {[%clk 0:00:06.3]} 29.
Bd4 {[%clk 0:00:17.8]} 29... Rc8 {[%clk 0:00:04.9]} 30. Be3 {[%clk 0:00:17.2]}
30... Nc5 {[%clk 0:00:02.8]} 31. Qg7 {[%clk 0:00:16.4]} 31... Qd7 {[%clk
0:00:02.3]} 32. Rb1 {[%clk 0:00:12.8]} 32... Nxa4 {[%clk 0:00:02.3]} 33. Qxh7
{[%clk 0:00:12.3]} 33... b5 {[%clk 0:00:02.8]} 34. Qg7 {[%clk 0:00:12]} 34...
Nc5 {[%clk 0:00:03.1]} 35. Qe5 {[%clk 0:00:11.8]} 35... Nd3 {[%clk 0:00:02.5]}
36. Qf6 {[%clk 0:00:12.1]} 36... f4 {[%clk 0:00:02.6]} 37. Bg1 {[%clk 0:00:11]}
37... Qd5 {[%clk 0:00:01.8]} 38. a4 {[%clk 0:00:10.3]} 38... b4 {[%clk
0:00:01.7]} 39. Qxf7 {[%clk 0:00:10.5]} 39... Qb7 {[%clk 0:00:01.9]} 40. Qxe6
{[%clk 0:00:10.1]} 1-0

[Event "Early-Titled-Tuesday-Blitz-August-29-2023"]
[Site "Chess.com"]
[Date "2023.08.29"]
[Round "6"]
[White "Lady_Nika"]
[Black "Druid24"]
[Result "0-1"]
[WhiteElo "2471"]
[BlackElo "2658"]
[TimeControl "180+1"]
[EndTime "9:06:32 PDT"]
[Termination "Druid24 won by resignation"]

1. e4 {[%clk 0:03:00.9]} 1... c6 {[%clk 0:02:59.5]} 2. d4 {[%clk 0:03:00.6]}
2... d5 {[%clk 0:02:59.5]} 3. Nc3 {[%clk 0:03:00.4]} 3... dxe4 {[%clk
0:02:58.3]} 4. Nxe4 {[%clk 0:03:01.1]} 4... Nf6 {[%clk 0:02:56.9]} 5. Nxf6+
{[%clk 0:03:01.3]} 5... exf6 {[%clk 0:02:57.8]} 6. c3 {[%clk 0:03:02]} 6... Bd6
{[%clk 0:02:56.7]} 7. Bd3 {[%clk 0:03:01.5]} 7... O-O {[%clk 0:02:55.1]} 8. Qc2
{[%clk 0:03:01.7]} 8... Re8+ {[%clk 0:02:52.3]} 9. Ne2 {[%clk 0:03:00.9]} 9...
h5 {[%clk 0:02:51.8]} 10. Bd2 {[%clk 0:03:00.8]} 10... Nd7 {[%clk 0:02:43.5]}
11. O-O-O {[%clk 0:02:51.1]} 11... h4 {[%clk 0:02:34.6]} 12. h3 {[%clk 0:02:49]}
12... Nb6 {[%clk 0:02:30.5]} 13. c4 {[%clk 0:02:49]} 13... c5 {[%clk 0:02:21.6]}
14. g3 {[%clk 0:02:42.3]} 14... cxd4 {[%clk 0:02:05.1]} 15. c5 {[%clk
0:02:41.4]} 15... Be6 {[%clk 0:02:03.2]} 16. Kb1 {[%clk 0:02:33.8]} 16... Rc8
{[%clk 0:01:59.7]} 17. Nxd4 {[%clk 0:02:30.9]} 17... Bxc5 {[%clk 0:01:46.2]} 18.
Nxe6 {[%clk 0:02:30.3]} 18... Rxe6 {[%clk 0:01:47.1]} 19. Bc3 {[%clk 0:02:28.8]}
19... Qe7 {[%clk 0:01:31.4]} 20. Bh7+ {[%clk 0:02:24.8]} 20... Kh8 {[%clk
0:01:28.3]} 21. Bf5 {[%clk 0:02:18.4]} 21... Re2 {[%clk 0:01:28.3]} 22. Qd3
{[%clk 0:02:17.1]} 22... Re8 {[%clk 0:01:21.5]} 23. gxh4 {[%clk 0:02:10.5]}
23... Na4 {[%clk 0:01:15.3]} 24. Qf3 {[%clk 0:02:02.5]} 24... Nxc3+ {[%clk
0:01:14.9]} 25. Qxc3 {[%clk 0:01:45.2]} 25... Bd6 {[%clk 0:01:08.6]} 26. f4
{[%clk 0:01:39.2]} 26... Bxf4 {[%clk 0:01:00.6]} 27. Qf3 {[%clk 0:01:38.9]}
27... Qe5 {[%clk 0:00:41.5]} 28. Bc2 {[%clk 0:01:26.1]} 28... Rc8 {[%clk
0:00:28.5]} 29. Rc1 {[%clk 0:00:46]} 29... Bxc1 {[%clk 0:00:24.7]} 30. Rxc1
{[%clk 0:00:45.7]} 30... Re1 {[%clk 0:00:22.5]} 31. Qf2 {[%clk 0:00:14.5]} 31...
Rxc1+ {[%clk 0:00:21.1]} 32. Kxc1 {[%clk 0:00:14.6]} 32... Qc7 {[%clk
0:00:18.5]} 33. Qe2 {[%clk 0:00:12.6]} 33... Qxc2+ {[%clk 0:00:19.4]} 34. Qxc2
{[%clk 0:00:12.5]} 34... Rxc2+ {[%clk 0:00:20.3]} 35. Kxc2 {[%clk 0:00:13.3]}
35... Kh7 {[%clk 0:00:21.2]} 36. Kd3 {[%clk 0:00:13.5]} 36... Kh6 {[%clk
0:00:21.7]} 37. Ke4 {[%clk 0:00:14]} 37... Kh5 {[%clk 0:00:21.8]} 38. Kf5 {[%clk
0:00:13.8]} 38... Kxh4 {[%clk 0:00:22.7]} 39. b4 {[%clk 0:00:14.2]} 39... Kxh3
{[%clk 0:00:22.2]} 40. a4 {[%clk 0:00:15.1]} 40... g5 {[%clk 0:00:22.3]} 41.
Kxf6 {[%clk 0:00:14.7]} 41... g4 {[%clk 0:00:22.8]} 42. Kxf7 {[%clk 0:00:15.6]}
42... g3 {[%clk 0:00:23.1]} 43. Ke7 {[%clk 0:00:16.5]} 43... g2 {[%clk
0:00:23.7]} 44. Kd7 {[%clk 0:00:17.4]} 44... g1=Q {[%clk 0:00:24.4]} 45. Kc7
{[%clk 0:00:18.3]} 45... Qb6+ {[%clk 0:00:24.5]} 46. Kc8 {[%clk 0:00:19.2]}
46... Qxb4 {[%clk 0:00:24]} 47. Kb8 {[%clk 0:00:20.1]} 0-1

[Event "Early-Titled-Tuesday-Blitz-August-29-2023"]
[Site "Chess.com"]
[Date "2023.08.29"]
[Round "6"]
[White "Ducke13"]
[Black "KevinGeorgeMicheal"]
[Result "1-0"]
[WhiteElo "2433"]
[BlackElo "2164"]
[TimeControl "180+1"]
[EndTime "9:06:32 PDT"]
[Termination "Ducke13 won on time"]

1. d4 {[%clk 0:02:58.1]} 1... d5 {[%clk 0:02:58.1]} 2. g3 {[%clk 0:02:57]} 2...
g6 {[%clk 0:02:57.4]} 3. Nf3 {[%clk 0:02:54.4]} 3... Nf6 {[%clk 0:02:57.4]} 4.
Bg2 {[%clk 0:02:54.2]} 4... Bg7 {[%clk 0:02:57.4]} 5. c4 {[%clk 0:02:53.6]} 5...
c6 {[%clk 0:02:56.2]} 6. cxd5 {[%clk 0:02:51.6]} 6... cxd5 {[%clk 0:02:56.1]} 7.
Nc3 {[%clk 0:02:52]} 7... Nc6 {[%clk 0:02:55.4]} 8. Ne5 {[%clk 0:02:45.2]} 8...
Ng4 {[%clk 0:02:50]} 9. Nxg4 {[%clk 0:02:24.8]} 9... Bxg4 {[%clk 0:02:49.5]} 10.
Bxd5 {[%clk 0:02:16.6]} 10... Bxd4 {[%clk 0:02:31.5]} 11. Qb3 {[%clk 0:02:03.6]}
11... O-O {[%clk 0:02:00.2]} 12. Bh6 {[%clk 0:02:01.6]} 12... Na5 {[%clk
0:01:37.6]} 13. Qb4 {[%clk 0:01:28.4]} 13... Nc6 {[%clk 0:00:45.7]} 14. Bxc6
{[%clk 0:01:06.4]} 14... bxc6 {[%clk 0:00:44.8]} 15. O-O-O {[%clk 0:00:55.3]}
15... c5 {[%clk 0:00:37.2]} 16. Qa3 {[%clk 0:00:49.2]} 16... Re8 {[%clk
0:00:26.1]} 17. h3 {[%clk 0:00:45.5]} 17... Be6 {[%clk 0:00:19.1]} 18. e3 {[%clk
0:00:45.3]} 18... Qb6 {[%clk 0:00:17.9]} 19. exd4 {[%clk 0:00:33.8]} 19... cxd4
{[%clk 0:00:17.9]} 20. Na4 {[%clk 0:00:31.5]} 20... Qc6+ {[%clk 0:00:13.2]} 21.
Kb1 {[%clk 0:00:30.6]} 21... Rad8 {[%clk 0:00:05.1]} 22. Ka1 {[%clk 0:00:29.7]}
22... Bf5 {[%clk 0:00:02.6]} 23. Nc5 {[%clk 0:00:29.6]} 23... Qd5 {[%clk
0:00:02.3]} 24. Nb3 {[%clk 0:00:24.7]} 24... e5 {[%clk 0:00:02.4]} 25. Rhe1
{[%clk 0:00:23.1]} 25... Bc2 {[%clk 0:00:02.2]} 26. Rd2 {[%clk 0:00:22.5]} 26...
d3 {[%clk 0:00:02.4]} 27. Nc5 {[%clk 0:00:20]} 27... Rc8 {[%clk 0:00:02.3]} 28.
Ne4 {[%clk 0:00:19.4]} 28... Kh8 {[%clk 0:00:01.9]} 29. Nf6 {[%clk 0:00:08.8]}
29... Qc6 {[%clk 0:00:02.3]} 30. Nxe8 {[%clk 0:00:08.4]} 30... Rxe8 {[%clk
0:00:02.9]} 31. Qc3 {[%clk 0:00:08.3]} 31... Qd5 {[%clk 0:00:01.9]} 32. f4
{[%clk 0:00:07.8]} 32... f6 {[%clk 0:00:01.5]} 33. fxe5 {[%clk 0:00:07.2]} 33...
fxe5 {[%clk 0:00:01.8]} 34. Bf4 {[%clk 0:00:07.4]} 34... Qd6 {[%clk 0:00:01.8]}
35. Rxe5 {[%clk 0:00:06.8]} 35... Rf8 {[%clk 0:00:01.6]} 36. Rd5+ {[%clk
0:00:06.4]} 1-0

[Event "Early-Titled-Tuesday-Blitz-August-29-2023"]
[Site "Chess.com"]
[Date "2023.08.29"]
[Round "6"]
[White "schack_vit"]
[Black "crazy_m_attack"]
[Result "0-1"]
[WhiteElo "2448"]
[BlackElo "2344"]
[TimeControl "180+1"]
[EndTime "9:06:36 PDT"]
[Termination "crazy_m_attack won by checkmate"]

1. c4 {[%clk 0:02:59.9]} 1... e6 {[%clk 0:02:59.4]} 2. Nf3 {[%clk 0:02:58.9]}
2... Nf6 {[%clk 0:02:59.7]} 3. g3 {[%clk 0:02:59.8]} 3... d5 {[%clk 0:03:00.1]}
4. Bg2 {[%clk 0:03:00.3]} 4... Be7 {[%clk 0:03:00.4]} 5. O-O {[%clk 0:03:00.5]}
5... O-O {[%clk 0:03:00.8]} 6. d4 {[%clk 0:03:00.6]} 6... dxc4 {[%clk 0:03:01]}
7. Qc2 {[%clk 0:02:58.1]} 7... a6 {[%clk 0:03:01.2]} 8. a4 {[%clk 0:02:56.6]}
8... Bd7 {[%clk 0:03:01.1]} 9. Rd1 {[%clk 0:02:52.3]} 9... Bc6 {[%clk
0:02:47.8]} 10. Nc3 {[%clk 0:02:52.2]} 10... Bxf3 {[%clk 0:02:37]} 11. Bxf3
{[%clk 0:02:52.7]} 11... Nc6 {[%clk 0:02:37.6]} 12. Bxc6 {[%clk 0:02:40.2]}
12... bxc6 {[%clk 0:02:38.5]} 13. a5 {[%clk 0:02:40.3]} 13... Rb8 {[%clk
0:02:33.6]} 14. Ra4 {[%clk 0:02:39.1]} 14... Rb4 {[%clk 0:02:31.1]} 15. Rxb4
{[%clk 0:02:39.3]} 15... Bxb4 {[%clk 0:02:32]} 16. Qa4 {[%clk 0:02:38.7]} 16...
Bxc3 {[%clk 0:02:13.6]} 17. bxc3 {[%clk 0:02:39.6]} 17... Qd5 {[%clk 0:02:08]}
18. f3 {[%clk 0:01:58.5]} 18... Rb8 {[%clk 0:01:58.8]} 19. Bf4 {[%clk
0:01:57.5]} 19... Qb5 {[%clk 0:01:27.9]} 20. Qa1 {[%clk 0:01:35.7]} 20... Nd5
{[%clk 0:01:26.3]} 21. Bd2 {[%clk 0:01:33.1]} 21... Qb2 {[%clk 0:01:00.3]} 22.
e4 {[%clk 0:01:29]} 22... Ne7 {[%clk 0:00:51.6]} 23. Kf1 {[%clk 0:00:45.6]}
23... Qc2 {[%clk 0:00:47.6]} 24. Qc1 {[%clk 0:00:39.1]} 24... Qa2 {[%clk
0:00:20.6]} 25. Bf4 {[%clk 0:00:28.7]} 25... Qxa5 {[%clk 0:00:17.3]} 26. Qa1
{[%clk 0:00:28.2]} 26... Qb6 {[%clk 0:00:13.6]} 27. Qa2 {[%clk 0:00:21.5]} 27...
Qb3 {[%clk 0:00:07.1]} 28. Qd2 {[%clk 0:00:12.6]} 28... Ng6 {[%clk 0:00:03.5]}
29. Bxc7 {[%clk 0:00:11.9]} 29... Rb7 {[%clk 0:00:04.1]} 30. Bd6 {[%clk
0:00:11.8]} 30... a5 {[%clk 0:00:04.7]} 31. Ra1 {[%clk 0:00:11.3]} 31... a4
{[%clk 0:00:04.4]} 32. Ra3 {[%clk 0:00:10.1]} 32... Qb1+ {[%clk 0:00:04.5]} 33.
Kg2 {[%clk 0:00:10.4]} 33... Rb2 {[%clk 0:00:04.1]} 34. Qxb2 {[%clk 0:00:09.4]}
34... Qxb2+ {[%clk 0:00:04.5]} 35. Kh3 {[%clk 0:00:10.3]} 35... f5 {[%clk
0:00:03.2]} 36. exf5 {[%clk 0:00:10.1]} 36... exf5 {[%clk 0:00:04.1]} 37. Rxa4
{[%clk 0:00:09.5]} 37... h5 {[%clk 0:00:04.7]} 38. Rxc4 {[%clk 0:00:09.6]} 38...
Qe2 {[%clk 0:00:03.7]} 39. Rb4 {[%clk 0:00:04.7]} 39... Qf1# {[%clk 0:00:03.9]}
0-1